[Event "BL 2018-19"]
[Site "Berlin"]
[Date "2019.03.03"]
[Round "11.8"]
[White "Bacrot, Etienne"]
[Black "Heinemann, Josefine"]
[Result "1-0"]
[ECO "C50"]
[WhiteElo "2677"]
[BlackElo "2329"]
[Annotator "ChessBase"]
[PlyCount "73"]
[EventDate "2018.11.10"]
[EventType "team-tourn"]
[EventCountry "GER"]
[SourceTitle "playchess.com"]
[Source "ChessBase"]
[SourceQuality "1"]
[WhiteTeam "Baden-Baden"]
[BlackTeam "Viernheim"]
[TimeControl "40/6000+30:3000+30"]

1. e4 e5 2. Nf3 Nc6 {[%emt 0:00:00]} 3. Bc4 {[%emt 0:04:16]} Bc5 {[%emt 0:00:10]} 4. O-O {[%emt 0:01:43]} Nf6 {[%emt 0:00:18]} 5. d3 {[%emt 0:00:20]} O-O {[%emt 0:00:59]} 6. Re1 {[%emt 0:00:43]} Ng4 {[%emt 0:01:41]} 7. Re2 {[%emt 0:10:12]} Kh8 {[%emt 0:04:06]} 8. h3 {[%emt 0:00:30]} f5 {[%emt 0:00:30]} 9. Bg5 {[%emt 0:00:30]} Nf6 {[%emt 0:00:30]} 10. exf5 {[%emt 0:00:30]} d5 {[%emt 0:00:30]} 11. Bb5 {[%emt 0:00:30]} e4 {[%emt 0:00:30]} 12. dxe4 {[%emt 0:00:30]} dxe4 {[%emt 0:00:30]} 13. Qxd8 {[%emt 0:00:30]} Rxd8 {[%emt 0:00:30]} 14. Bxc6 {[%emt 0:00:30]} bxc6 {[%emt 0:00:30]} 15. Nfd2 {[%emt 0:00:30]} Bxf5 {[%emt 0:00:30]} 16. Nc3 {[%emt 0:00:30]} e3 {[%emt 0:00:30]} 17. Bxe3 {[%emt 0:00:30]} Bxe3 {[%emt 0:00:30]} 18. fxe3 {[%emt 0:00:30]} Bxc2 {[%emt 0:00:30]} 19. Nf3 {[%emt 0:00:30]} Bd3 {[%emt 0:00:30]} 20. Rd2 {[%emt 0:00:30]} Be4 {[%emt 0:00:30]} 21. Nxe4 {[%emt 0:00:30]} Nxe4 {[%emt 0:00:30]} 22. Rxd8+ {[%emt 0:00:30]} Rxd8 {[%emt 0:00:30]} 23. Rc1 {[%emt 0:00:30]} c5 {[%emt 0:00:30]} 24. Rc4 {[%emt 0:00:30]} Re8 {[%emt 0:00:30]} 25. Ra4 {[%emt 0:00:30]} Kg8 {[%emt 0:00:30]} 26. Rxa7 {[%emt 0:00:30]} Re7 {[%emt 0:00:30]} 27. a4 {[%emt 0:00:30]} Kf7 {[%emt 0:00:30]} 28. a5 {[%emt 0:00:30]} Ke6 {[%emt 0:00:30]} 29. a6 {[%emt 0:00:30]} Nd6 {[%emt 0:00:30]} 30. Ra8 {[%emt 0:00:30]} c6 {[%emt 0:00:30]} 31. Nd2 {[%emt 0:00:30]} Kd5 {[%emt 0:00:30]} 32. a7 {[%emt 0:00:30]} c4 {[%emt 0:00:30]} 33. Nb1 {[%emt 0:00:30]} Kc5 {[%emt 0:00:30]} 34. Nc3 {[%emt 0:00:30]} g6 {[%emt 0:00:30]} 35. e4 {[%emt 0:00:30]} h5 {[%emt 0:00:30]} 36. e5 {[%emt 0:00:30]} Nf7 {[%emt 0:00:30]} 37. Na4+ {[%emt 0:00:30]} 1-0

[Event "BL 2018-19"]
[Site "Berlin"]
[Date "2019.03.03"]
[Round "11.12"]
[White "Hracek, Zbynek"]
[Black "Hector, Jonny"]
[Result "1/2-1/2"]
[ECO "C50"]
[WhiteElo "2569"]
[BlackElo "2495"]
[Annotator "ChessBase"]
[PlyCount "49"]
[EventDate "2018.11.10"]
[EventType "team-tourn"]
[EventCountry "GER"]
[SourceTitle "playchess.com"]
[Source "ChessBase"]
[SourceQuality "1"]
[WhiteTeam "Werder Bremen"]
[BlackTeam "Kiel"]
[TimeControl "40/6000+30:3000+30"]

1. e4 {[%emt 0:00:00]} e5 {[%emt 0:00:00]} 2. Nf3 {[%emt 0:00:00]} Nc6 {[%emt 0:00:00]} 3. Bc4 {[%emt 0:00:00]} Nf6 {[%emt 0:00:10]} 4. d3 {[%emt 0:00:00]} Bc5 {[%emt 0:01:39]} 5. c3 {[%emt 0:00:47]} O-O {[%emt 0:02:44]} 6. O-O {[%emt 0:01:24]} d5 {[%emt 0:01:54]} 7. exd5 {[%emt 0:01:06]} Nxd5 {[%emt 0:00:12]} 8. Re1 {[%emt 0:00:16]} Bg4 {[%emt 0:07:31]} 9. h3 {[%emt 0:01:11]} Bh5 {[%emt 0:00:35]} 10. Nbd2 {[%emt 0:00:08]} Nb6 {[%emt 0:00:52]} 11. Bb3 {[%emt 0:00:03]} Bd6 {[%emt 0:03:31]} 12. Ne4 {[%emt 0:16:30]} Kh8 {[%emt 0:02:07]} 13. g4 {[%emt 0:03:08]} Bg6 {[%emt 0:00:14]} 14. d4 {[%emt 0:00:10]} exd4 {[%emt 0:14:20]} 15. Nxd4 {[%emt 0:00:06]} Nxd4 {[%emt 0:03:43]} 16. Qxd4 {[%emt 0:00:05]} Be7 {[%emt 0:05:28]} 17. Bf4 {[%emt 0:22:06]} f5 {[%emt 0:13:59]} 18. Qxd8 {[%emt 0:00:45]} Raxd8 {[%emt 0:01:21]} 19. Ng5 {[%emt 0:00:14]} Bxg5 {[%emt 0:01:16]} 20. Bxg5 {[%emt 0:00:03]} Rd3 {[%emt 0:02:13]} 21. Re3 {[%emt 0:22:31]} fxg4 {[%emt 0:02:05]} 22. hxg4 {[%emt 0:00:28]} h6 {[%emt 0:02:52]} 23. Rxd3 {[%emt 0:02:13]} Bxd3 {[%emt 0:00:04]} 24. Be3 {[%emt 0:08:13]} Nc4 {[%emt 0:01:52]} 25. Bxc4 {[%emt 0:12:35]} 1/2-1/2

[Event "BL 2018-19"]
[Site "Berlin"]
[Date "2019.03.03"]
[Round "11.13"]
[White "Pakleza, Zbigniew"]
[Black "Babula, Vlastimil"]
[Result "1/2-1/2"]
[ECO "A46"]
[WhiteElo "2508"]
[BlackElo "2538"]
[Annotator "RC"]
[PlyCount "47"]
[EventDate "2018.11.10"]
[EventType "team-tourn"]
[EventCountry "GER"]
[SourceTitle "playchess.com"]
[Source "ChessBase"]
[SourceQuality "1"]
[WhiteTeam "Kiel"]
[BlackTeam "Werder Bremen"]
[TimeControl "40/6000+30:3000+30"]

1. d4 {[%emt 0:00:00]} Nf6 {[%emt 0:00:00]} 2. Nf3 {[%emt 0:00:00]} e6 {[%emt 0:00:03]} 3. e3 {[%emt 0:00:00]} b6 {[%emt 0:01:48]} 4. Bd3 {[%emt 0:00:09]} Bb7 {[%emt 0:00:45]} 5. O-O {[%emt 0:00:22]} d5 {[%emt 0:02:11]} 6. c4 {[%emt 0:00:08]} Bd6 {[%emt 0:02:02]} 7. Nc3 {[%emt 0:00:10]} O-O {[%emt 0:00:50]} 8. b3 {[%emt 0:02:19]} Nbd7 {[%emt 0:00:46]} 9. Bb2 {[%emt 0:01:38]} a6 {[%emt 0:03:06]} 10. Rc1 {[%emt 0:04:20]} Qe7 {[%emt 0:00:32]} 11. Qe2 {[%emt 0:10:12]} Ne4 {[%emt 0:15:48]} 12. Nd2 {[%emt 0:07:43]} f5 {[%emt 0:10:14]} 13. f3 {[%emt 0:10:04]} Nxd2 {[%emt 0:10:58]} 14. Qxd2 {[%emt 0:00:31]} dxc4 {[%emt 0:01:28]} 15. bxc4 {[%emt 0:02:38]} e5 {[%emt 0:01:38]} 16. f4 {[%emt 0:04:29]} exd4 {[%emt 0:02:05]} 17. exd4 {[%emt 0:01:38]} Rae8 {[%emt 0:05:41]} 18. Rce1 {[%emt 0:19:53]} Qf7 {[%emt 0:00:35]} 19. g3 {[%emt 0:00:39]} Nf6 {[%emt 0:06:22]} 20. Rxe8 {[%emt 0:05:29]} Rxe8 {[%emt 0:00:24]} 21. Re1 {[%emt 0:00:16]} Rxe1+ {[%emt 0:04:41]} 22. Qxe1 {[%emt 0:00:11]} Qd7 {[%emt 0:01:20]} 23. Qe2 {[%emt 0:15:52]} g6 {[%emt 0:05:18]} 24. Kf1 {[%emt 0:01:47]} 1/2-1/2

[Event "BL 2018-19"]
[Site "Berlin"]
[Date "2019.03.03"]
[Round "11.16"]
[White "Grigorian, Spartak"]
[Black "Olsen, Filip Boe"]
[Result "1-0"]
[ECO "D45"]
[WhiteElo "2391"]
[BlackElo "2335"]
[Annotator "NA"]
[PlyCount "63"]
[EventDate "2018.11.10"]
[EventType "team-tourn"]
[EventCountry "GER"]
[SourceTitle "playchess.com"]
[Source "ChessBase"]
[SourceQuality "1"]
[WhiteTeam "Werder Bremen"]
[BlackTeam "Kiel"]
[TimeControl "40/6000+30:3000+30"]

1. d4 {[%emt 0:00:00]} Nf6 {[%emt 0:00:00]} 2. c4 {[%emt 0:00:00]} e6 {[%emt 0:00:00]} 3. Nf3 {[%emt 0:00:00]} d5 {[%emt 0:00:17]} 4. Nc3 {[%emt 0:00:00]} c6 {[%emt 0:00:16]} 5. e3 {[%emt 0:00:58]} Nbd7 {[%emt 0:00:42]} 6. Qc2 {[%emt 0:00:51]} Bd6 {[%emt 0:00:40]} 7. Bd3 {[%emt 0:00:47]} O-O {[%emt 0:00:17]} 8. O-O {[%emt 0:00:03]} dxc4 {[%emt 0:05:40]} 9. Bxc4 {[%emt 0:00:11]} b5 {[%emt 0:00:33]} 10. Be2 {[%emt 0:00:42]} Bb7 {[%emt 0:00:44]} 11. e4 {[%emt 0:00:12]} e5 {[%emt 0:00:26]} 12. dxe5 {[%emt 0:00:08]} Nxe5 {[%emt 0:00:36]} 13. Nh4 {[%emt 0:01:39]} Re8 {[%emt 0:09:13]} 14. Nf5 {[%emt 0:00:33]} Bf8 {[%emt 0:00:54]} 15. Bg5 {[%emt 0:02:23]} a6 {[%emt 0:12:37]} 16. Bxf6 {[%emt 0:07:42]} gxf6 {[%emt 0:11:14]} 17. a4 {[%emt 0:08:35]} Qb6 {[%emt 0:09:26]} 18. Nd1 {[%emt 0:22:34]} Rad8 {[%emt 0:06:28]} 19. Nde3 {[%emt 0:00:29]} Qc5 {[%emt 0:01:48]} 20. Rfc1 {[%emt 0:05:35]} Qb4 {[%emt 0:04:41]} 21. Rd1 {[%emt 0:05:31]} Bc8 {[%emt 0:08:15]} 22. axb5 {[%emt 0:14:49]} axb5 {[%emt 0:01:32]} 23. Ng3 {[%emt 0:01:26]} Be6 {[%emt 0:05:16]} 24. Nh5 {[%emt 0:17:29]} Be7 {[%emt 0:08:08]} 25. Nf5 {[%emt 0:00:49]} Bb3 {[%emt 0:10:55]} 26. Rxd8 {[%emt 0:08:32]} Rxd8 {[%emt 0:00:22]} 27. Nxe7+ {[%emt 0:00:13]} Kf8 {[%emt 0:02:43]} 28. Nxc6 {[%emt 0:00:04]} Nxc6 {[%emt 0:00:27]} 29. Qxc6 {[%emt 0:00:07]} Bd1 {[%emt 0:00:29]} 30. Qxf6 {[%emt 0:01:39]} Qd2 {[%emt 0:02:12]} 31. Qh8+ {[%emt 0:01:50]} Ke7 {[%emt 0:00:51]} 32. Ra7+ {[%emt 0:00:05]} 1-0

[Event "BL 2018-19"]
[Site "Berlin"]
[Date "2019.03.03"]
[Round "11.21"]
[White "Arnaudov, G. Petar"]
[Black "Kraemer, Martin"]
[Result "1/2-1/2"]
[ECO "E20"]
[WhiteElo "2459"]
[BlackElo "2582"]
[Annotator "ChessBase"]
[PlyCount "95"]
[EventDate "2018.11.10"]
[EventType "team-tourn"]
[EventCountry "GER"]
[SourceTitle "playchess.com"]
[Source "ChessBase"]
[SourceQuality "1"]
[WhiteTeam "Augsburg"]
[BlackTeam "SF Berlin"]
[TimeControl "40/6000+30:3000+30"]

1. d4 {[%emt 0:00:00]} Nf6 {[%emt 0:00:00]} 2. c4 {[%emt 0:00:00]} e6 {[%emt 0:00:00]} 3. Nc3 {[%emt 0:00:00]} Bb4 {[%emt 0:00:00]} 4. g3 {[%emt 0:00:00]} O-O {[%emt 0:01:23]} 5. Bg2 {[%emt 0:00:00]} d5 {[%emt 0:00:11]} 6. Nf3 {[%emt 0:00:00]} dxc4 {[%emt 0:01:41]} 7. O-O {[%emt 0:00:03]} Nc6 {[%emt 0:00:13]} 8. Qa4 {[%emt 0:00:09]} Nd5 {[%emt 0:00:06]} 9. Qc2 {[%emt 0:00:12]} Be7 {[%emt 0:00:02]} 10. Rd1 {[%emt 0:00:13]} Bd7 {[%emt 0:01:03]} 11. e4 {[%emt 0:01:07]} Ncb4 {[%emt 0:02:35]} 12. Qd2 {[%emt 0:01:08]} Nb6 {[%emt 0:02:03]} 13. Qe2 {[%emt 0:05:59]} Nd3 {[%emt 0:31:22]} 14. Be3 {[%emt 0:00:08]} Bb4 {[%emt 0:06:04]} 15. Qc2 {[%emt 0:02:54]} Bxc3 {[%emt 0:01:54]} 16. Qxc3 {[%emt 0:00:46]} Na4 {[%emt 0:00:16]} 17. Qc2 {[%emt 0:04:13]} Ndxb2 {[%emt 0:01:17]} 18. Rdb1 {[%emt 0:00:18]} c3 {[%emt 0:00:22]} 19. Qb3 {[%emt 0:03:53]} b5 {[%emt 0:03:51]} 20. d5 {[%emt 0:00:32]} exd5 {[%emt 0:07:09]} 21. exd5 {[%emt 0:00:46]} Bf5 {[%emt 0:17:48]} 22. Re1 {[%emt 0:01:34]} Be4 {[%emt 0:03:49]} 23. Ng5 {[%emt 0:06:03]} Bxg2 {[%emt 0:02:26]} 24. Kxg2 {[%emt 0:00:11]} a6 {[%emt 0:01:49]} 25. Kg1 {[%emt 0:06:01]} h6 {[%emt 0:06:44]} 26. Ne4 {[%emt 0:00:17]} c2 {[%emt 0:11:29]} 27. Nd2 {[%emt 0:08:00]} c5 {[%emt 0:02:02]} 28. dxc6 {[%emt 0:04:13]} Nd3 {[%emt 0:00:03]} 29. Qxc2 {[%emt 0:01:35]} Nxe1 {[%emt 0:00:02]} 30. Rxe1 {[%emt 0:00:10]} Rc8 {[%emt 0:00:45]} 31. Rc1 {[%emt 0:00:24]} Qd5 {[%emt 0:00:41]} 32. Nb3 {[%emt 0:00:33]} b4 {[%emt 0:02:02]} 33. Qc4 {[%emt 0:02:52]} Qxc4 {[%emt 0:00:56]} 34. Rxc4 {[%emt 0:00:05]} Rfe8 {[%emt 0:01:19]} 35. Rxb4 {[%emt 0:02:05]} Nc3 {[%emt 0:00:13]} 36. Rc4 {[%emt 0:03:53]} Nd5 {[%emt 0:00:53]} 37. Bd2 {[%emt 0:00:32]} Nb6 {[%emt 0:02:38]} 38. Rc5 {[%emt 0:00:55]} Re6 {[%emt 0:00:17]} 39. Nd4 {[%emt 0:01:17]} Rd6 {[%emt 0:00:15]} 40. Be3 {[%emt 0:00:22]} Rd5 {[%emt 0:01:43]} 41. Rc2 {[%emt 0:54:27]} h5 {[%emt 0:12:58]} 42. h3 {[%emt 0:00:00]} g6 {[%emt 0:00:47]} 43. g4 {[%emt 0:00:00]} hxg4 {[%emt 0:01:02]} 44. hxg4 {[%emt 0:00:00]} Rd6 {[%emt 0:01:13]} 45. Kg2 {[%emt 0:00:00]} Nd5 {[%emt 0:00:44]} 46. Rc4 {[%emt 0:00:00]} f6 {[%emt 0:12:03]} 47. Ra4 {[%emt 0:00:00]} g5 {[%emt 0:02:14]} 48. Rxa6 {[%emt 0:00:00]} 1/2-1/2

[Event "BL 2018-19"]
[Site "Berlin"]
[Date "2019.03.03"]
[Round "11.23"]
[White "Nestorovic, Nikola"]
[Black "Abel, Dennes"]
[Result "1-0"]
[ECO "B12"]
[WhiteElo "2455"]
[BlackElo "2465"]
[Annotator "RC"]
[PlyCount "49"]
[EventDate "2018.11.10"]
[EventType "team-tourn"]
[EventCountry "GER"]
[SourceTitle "playchess.com"]
[Source "ChessBase"]
[SourceQuality "1"]
[WhiteTeam "Augsburg"]
[BlackTeam "SF Berlin"]
[TimeControl "40/6000+30:3000+30"]

1. e4 {[%emt 0:00:00]} c6 {[%emt 0:00:00]} 2. d4 {[%emt 0:00:00]} d5 {[%emt 0:00:00]} 3. e5 {[%emt 0:00:00]} Bf5 {[%emt 0:00:00]} 4. Nd2 e6 {[%emt 0:00:14]} 5. Nb3 {[%emt 0:00:00]} Nd7 {[%emt 0:00:44]} 6. Ne2 Ne7 7. c3 {[%emt 0:00:59]} Qc7 {[%emt 0:07:35]} 8. Ng3 {[%emt 0:00:29]} Bg6 {[%emt 0:01:53]} 9. Be2 {[%emt 0:00:34]} c5 {[%emt 0:03:11]} 10. Be3 {[%emt 0:00:48]} Nf5 {[%emt 0:09:29]} 11. Nxf5 {[%emt 0:00:20]} Bxf5 {[%emt 0:00:06]} 12. O-O {[%emt 0:00:25]} Bg6 {[%emt 0:05:00]} 13. f4 {[%emt 0:10:13]} c4 {[%emt 0:06:19]} 14. Nd2 {[%emt 0:00:56]} h5 {[%emt 0:13:15]} 15. b3 {[%emt 0:11:13]} cxb3 {[%emt 0:02:09]} 16. Qxb3 {[%emt 0:04:47]} Be7 {[%emt 0:04:29]} 17. c4 {[%emt 0:01:54]} dxc4 {[%emt 0:05:39]} 18. Nxc4 {[%emt 0:01:44]} O-O {[%emt 0:13:19]} 19. Rac1 {[%emt 0:11:24]} Rab8 {[%emt 0:05:06]} 20. d5 {[%emt 0:00:21]} Nc5 21. d6 {[%emt 0:00:04]} Nxb3 {[%emt 0:01:43]} 22. dxc7 {[%emt 0:00:07]} Nxc1 {[%emt 0:00:12]} 23. Rxc1 {[%emt 0:00:06]} Rbc8 {[%emt 0:05:13]} 24. Nd6 {[%emt 0:03:33]} f6 25. Bb5 1-0

[Event "BL 2018-19"]
[Site "Berlin"]
[Date "2019.03.03"]
[Round "11.24"]
[White "Wegerle, Joerg"]
[Black "Margolin, Boris"]
[Result "1-0"]
[ECO "B06"]
[WhiteElo "2409"]
[BlackElo "2386"]
[Annotator "NA"]
[PlyCount "77"]
[EventDate "2018.11.10"]
[EventType "team-tourn"]
[EventCountry "GER"]
[SourceTitle "playchess.com"]
[Source "ChessBase"]
[SourceQuality "1"]
[WhiteTeam "Solingen"]
[BlackTeam "SV Hofheim"]
[TimeControl "40/6000+30:3000+30"]

1. d4 {[%emt 0:00:00]} g6 {[%emt 0:07:33]} 2. e4 {[%emt 0:04:21]} Bg7 {[%emt 0:01:03]} 3. Nf3 {[%emt 0:00:30]} d6 {[%emt 0:01:02]} 4. Nc3 {[%emt 0:01:18]} a6 {[%emt 0:02:35]} 5. Be3 {[%emt 0:09:32]} b5 {[%emt 0:01:07]} 6. Bd3 {[%emt 0:02:10]} Nd7 {[%emt 0:02:24]} 7. a4 {[%emt 0:07:43]} b4 {[%emt 0:02:56]} 8. Ne2 {[%emt 0:00:54]} Ngf6 {[%emt 0:13:33]} 9. Qd2 {[%emt 0:07:21]} Rb8 {[%emt 0:07:14]} 10. Bh6 {[%emt 0:08:18]} Bxh6 {[%emt 0:05:01]} 11. Qxh6 {[%emt 0:00:23]} e5 {[%emt 0:00:05]} 12. O-O {[%emt 0:13:19]} Ng4 {[%emt 0:05:45]} 13. Qd2 {[%emt 0:02:48]} O-O {[%emt 0:00:48]} 14. h3 {[%emt 0:03:40]} Ngf6 {[%emt 0:01:20]} 15. Qh6 {[%emt 0:01:22]} Re8 {[%emt 0:05:38]} 16. Ng5 {[%emt 0:10:36]} Re7 {[%emt 0:07:41]} 17. f4 {[%emt 0:03:15]} Qf8 {[%emt 0:01:33]} 18. Qxf8+ {[%emt 0:03:51]} Kxf8 {[%emt 0:00:19]} 19. fxe5 {[%emt 0:00:22]} dxe5 {[%emt 0:00:34]} 20. dxe5 {[%emt 0:00:16]} Rxe5 {[%emt 0:00:24]} 21. Nf3 {[%emt 0:00:30]} Rc5 {[%emt 0:02:29]} 22. e5 {[%emt 0:08:17]} Ne8 {[%emt 0:04:19]} 23. Ned4 {[%emt 0:00:59]} Kg7 {[%emt 0:08:27]} 24. Nb3 {[%emt 0:03:08]} Rxe5 {[%emt 0:02:21]} 25. Nxe5 {[%emt 0:01:03]} Nxe5 {[%emt 0:00:03]} 26. Rae1 {[%emt 0:02:45]} f6 {[%emt 0:02:46]} 27. a5 {[%emt 0:02:28]} Nd6 {[%emt 0:05:13]} 28. Rf4 {[%emt 0:03:12]} Bf5 {[%emt 0:04:25]} 29. Bxa6 {[%emt 0:03:28]} g5 {[%emt 0:02:09]} 30. Rf2 {[%emt 0:00:47]} Ra8 {[%emt 0:00:45]} 31. Bf1 {[%emt 0:00:55]} c5 {[%emt 0:00:59]} 32. Rd1 {[%emt 0:01:45]} Nef7 {[%emt 0:00:40]} 33. a6 {[%emt 0:01:47]} c4 {[%emt 0:00:48]} 34. Nc5 {[%emt 0:00:23]} Bc8 {[%emt 0:03:04]} 35. Rfd2 {[%emt 0:00:27]} Nf5 {[%emt 0:00:36]} 36. Bxc4 {[%emt 0:00:47]} Ne3 {[%emt 0:00:33]} 37. Bxf7 {[%emt 0:00:42]} Kxf7 {[%emt 0:00:34]} 38. Re1 {[%emt 0:00:43]} Nc4 {[%emt 0:00:51]} 39. Rd8 {[%emt 0:00:36]} 1-0

[Event "BL 2018-19"]
[Site "Berlin"]
[Date "2019.03.03"]
[Round "11.30"]
[White "Boensch, Uwe"]
[Black "Gerigk, Erasmus"]
[Result "0-1"]
[ECO "D37"]
[WhiteElo "2553"]
[BlackElo "2355"]
[Annotator "ChessBase"]
[PlyCount "114"]
[EventDate "2018.11.10"]
[EventType "team-tourn"]
[EventCountry "GER"]
[SourceTitle "playchess.com"]
[Source "ChessBase"]
[SourceQuality "1"]
[WhiteTeam "Dresden"]
[BlackTeam "Zugzwang Muenchen"]
[TimeControl "40/6000+30:3000+30"]

1. d4 {[%emt 0:00:00]} Nf6 {[%emt 0:00:00]} 2. c4 {[%emt 0:00:00]} e6 {[%emt 0:00:00]} 3. Nf3 {[%emt 0:00:00]} d5 {[%emt 0:00:00]} 4. Nc3 {[%emt 0:00:03]} dxc4 {[%emt 0:00:19]} 5. e3 {[%emt 0:00:11]} a6 {[%emt 0:00:25]} 6. a4 {[%emt 0:00:07]} c5 {[%emt 0:00:22]} 7. Bxc4 {[%emt 0:00:07]} Nc6 {[%emt 0:00:35]} 8. O-O {[%emt 0:00:11]} Be7 {[%emt 0:00:48]} 9. b3 {[%emt 0:04:59]} O-O {[%emt 0:02:14]} 10. Bb2 {[%emt 0:00:59]} cxd4 {[%emt 0:04:00]} 11. exd4 {[%emt 0:00:13]} Nb4 {[%emt 0:01:46]} 12. Ne5 {[%emt 0:03:15]} b6 {[%emt 0:13:43]} 13. f4 {[%emt 0:17:26]} g6 {[%emt 0:05:47]} 14. Qf3 {[%emt 0:09:50]} Ra7 {[%emt 0:11:51]} 15. Rad1 {[%emt 0:01:26]} Bb7 {[%emt 0:03:03]} 16. Qh3 {[%emt 0:00:59]} Nbd5 {[%emt 0:04:35]} 17. Ne2 {[%emt 0:05:35]} Ba8 {[%emt 0:08:37]} 18. Bc1 {[%emt 0:38:55]} Ne4 {[%emt 0:24:46]} 19. f5 {[%emt 0:08:44]} exf5 {[%emt 0:01:06]} 20. Bh6 {[%emt 0:00:29]} Re8 {[%emt 0:01:32]} 21. Rxf5 {[%emt 0:01:38]} gxf5 {[%emt 0:02:27]} 22. Qxf5 {[%emt 0:02:03]} Bg5 {[%emt 0:02:03]} 23. Bxg5 {[%emt 0:02:38]} Qxg5 {[%emt 0:04:08]} 24. Qxe4 {[%emt 0:00:31]} Ne3 {[%emt 0:05:44]} 25. Nxf7 {[%emt 0:00:19]} Bxe4 {[%emt 0:01:01]} 26. Nxg5+ {[%emt 0:00:08]} Nxc4 {[%emt 0:00:28]} 27. bxc4 {[%emt 0:00:55]} Bc2 {[%emt 0:01:28]} 28. Rd2 {[%emt 0:00:08]} Bxa4 {[%emt 0:00:07]} 29. Nc3 {[%emt 0:02:01]} Bc6 {[%emt 0:01:54]} 30. d5 {[%emt 0:00:11]} Bd7 {[%emt 0:00:23]} 31. Nge4 {[%emt 0:05:02]} Kg7 {[%emt 0:02:11]} 32. Rb2 {[%emt 0:00:13]} b5 {[%emt 0:04:44]} 33. cxb5 {[%emt 0:04:26]} axb5 {[%emt 0:02:34]} 34. Nc5 Rc8 {[%emt 0:01:19]} 35. N3e4 {[%emt 0:01:58]} Be8 {[%emt 0:00:47]} 36. d6 {[%emt 0:00:30]} Bc6 {[%emt 0:00:31]} 37. Nc3 {[%emt 0:01:26]} Rb8 {[%emt 0:00:30]} 38. Ne6+ {[%emt 0:00:33]} Kg6 {[%emt 0:00:14]} 39. Nd4 {[%emt 0:00:14]} Bd7 {[%emt 0:00:09]} 40. Rb4 {[%emt 0:00:59]} Ra6 {[%emt 0:01:08]} 41. Nf3 {[%emt 0:01:10]} Rxd6 {[%emt 0:09:58]} 42. Ne5+ {[%emt 0:00:17]} Kf6 {[%emt 0:04:30]} 43. Nxd7+ {[%emt 0:00:35]} Rxd7 {[%emt 0:00:06]} 44. Rxb5 {[%emt 0:00:29]} Rxb5 {[%emt 0:00:12]} 45. Nxb5 {[%emt 0:00:01]} Rd3 {[%emt 0:00:19]} 46. Na7 {[%emt 0:14:27]} Rc3 {[%emt 0:13:26]} 47. Nb5 {[%emt 0:00:31]} Rc1+ {[%emt 0:01:37]} 48. Kf2 {[%emt 0:00:01]} Ke5 {[%emt 0:00:33]} 49. h3 {[%emt 0:20:08]} Rc2+ {[%emt 0:03:15]} 50. Kf3 {[%emt 0:05:27]} Rc5 {[%emt 0:01:36]} 51. Na7 {[%emt 0:00:08]} Kd6 {[%emt 0:01:29]} 52. g4 {[%emt 0:00:40]} Kc7 {[%emt 0:00:17]} 53. h4 {[%emt 0:00:53]} Kb7 {[%emt 0:01:12]} 54. g5 {[%emt 0:00:22]} Kxa7 {[%emt 0:00:24]} 55. Kg4 {[%emt 0:00:22]} Kb7 {[%emt 0:00:46]} 56. h5 {[%emt 0:00:06]} Kc7 {[%emt 0:00:35]} 57. g6 {[%emt 0:00:16]} h6 {[%emt 0:00:12]} 0-1

[Event "BL 2018-19"]
[Site "Berlin"]
[Date "2019.03.03"]
[Round "11.32"]
[White "Loxine, Jakov"]
[Black "Eichler, Christoph"]
[Result "1/2-1/2"]
[ECO "A13"]
[WhiteElo "2393"]
[BlackElo "2315"]
[Annotator "NA"]
[PlyCount "55"]
[EventDate "2018.11.10"]
[EventType "team-tourn"]
[EventCountry "GER"]
[SourceTitle "playchess.com"]
[Source "ChessBase"]
[SourceQuality "1"]
[WhiteTeam "Dresden"]
[BlackTeam "Zugzwang Muenchen"]
[TimeControl "40/6000+30:3000+30"]

1. c4 {[%emt 0:00:00]} e6 {[%emt 0:00:00]} 2. Nc3 {[%emt 0:00:00]} d5 {[%emt 0:00:00]} 3. cxd5 {[%emt 0:00:00]} exd5 {[%emt 0:00:00]} 4. d4 {[%emt 0:00:00]} c6 {[%emt 0:01:33]} 5. Bf4 {[%emt 0:00:00]} Bd6 {[%emt 0:01:55]} 6. Bxd6 {[%emt 0:00:04]} Qxd6 {[%emt 0:00:04]} 7. e3 {[%emt 0:00:05]} Nf6 {[%emt 0:02:06]} 8. Bd3 {[%emt 0:00:23]} O-O {[%emt 0:00:58]} 9. h3 {[%emt 0:05:30]} Be6 {[%emt 0:03:56]} 10. Nf3 {[%emt 0:00:42]} Nbd7 {[%emt 0:00:13]} 11. O-O {[%emt 0:00:58]} Rfc8 {[%emt 0:11:59]} 12. Rb1 {[%emt 0:05:20]} a5 {[%emt 0:04:52]} 13. Qc2 {[%emt 0:01:34]} h6 {[%emt 0:03:41]} 14. Rbc1 {[%emt 0:07:12]} b5 {[%emt 0:08:35]} 15. Ne2 {[%emt 0:06:04]} b4 {[%emt 0:12:29]} 16. Nf4 {[%emt 0:06:34]} c5 {[%emt 0:01:45]} 17. dxc5 {[%emt 0:01:14]} Nxc5 {[%emt 0:01:06]} 18. Nd4 {[%emt 0:02:41]} Bd7 {[%emt 0:04:31]} 19. Qd1 {[%emt 0:14:21]} a4 {[%emt 0:03:33]} 20. f3 {[%emt 0:12:30]} Re8 {[%emt 0:04:56]} 21. Qd2 {[%emt 0:02:17]} Qe7 {[%emt 0:14:01]} 22. Bb1 {[%emt 0:04:57]} Rac8 {[%emt 0:01:22]} 23. Rfe1 {[%emt 0:11:40]} g5 {[%emt 0:02:19]} 24. Nd3 {[%emt 0:00:48]} Nxd3 {[%emt 0:00:31]} 25. Bxd3 {[%emt 0:01:09]} Rxc1 {[%emt 0:00:33]} 26. Qxc1 {[%emt 0:00:08]} Rc8 {[%emt 0:00:11]} 27. Qd2 {[%emt 0:00:13]} Qc5 {[%emt 0:03:26]} 28. Kf2 {[%emt 0:03:22]} 1/2-1/2

[Event "BL 2018-19"]
[Site "Berlin"]
[Date "2019.03.09"]
[Round "12"]
[White "Gajewski, Grzegorz"]
[Black "Fedorchuk, Sergey A."]
[Result "1/2-1/2"]
[ECO "C14"]
[WhiteElo "2595"]
[BlackElo "2611"]
[Annotator "ChessBase"]
[PlyCount "41"]
[EventDate "2018.11.10"]
[EventType "team-tourn"]
[EventCountry "GER"]
[SourceTitle "playchess.com"]
[Source "ChessBase"]
[SourceQuality "1"]
[WhiteTeam "Dresden"]
[BlackTeam "Viernheim"]
[TimeControl "40/6000+30:3000+30"]

1. e4 {[%emt 0:00:00]} e6 {[%emt 0:00:00]} 2. d4 {[%emt 0:00:00]} d5 {[%emt 0:00:00]} 3. Nc3 {[%emt 0:00:08]} Nf6 {[%emt 0:00:00]} 4. Bg5 {[%emt 0:00:13]} Be7 {[%emt 0:00:47]} 5. e5 {[%emt 0:00:10]} Nfd7 {[%emt 0:00:05]} 6. h4 {[%emt 0:00:34]} h6 {[%emt 0:05:55]} 7. Bxe7 {[%emt 0:00:04]} Qxe7 {[%emt 0:00:03]} 8. Nb5 {[%emt 0:02:50]} Nb6 {[%emt 0:01:35]} 9. c3 {[%emt 0:00:18]} a6 {[%emt 0:02:20]} 10. Na3 {[%emt 0:00:03]} c5 {[%emt 0:00:41]} 11. Nc2 {[%emt 0:10:34]} Nc6 {[%emt 0:08:27]} 12. Ne2 {[%emt 0:06:08]} Bd7 {[%emt 0:11:22]} 13. Nf4 {[%emt 0:00:54]} O-O-O {[%emt 0:14:20]} 14. g3 {[%emt 0:16:25]} Kb8 {[%emt 0:04:12]} 15. Nd3 {[%emt 0:05:19]} Na4 {[%emt 0:04:20]} 16. Rb1 {[%emt 0:04:13]} f6 {[%emt 0:01:31]} 17. exf6 {[%emt 0:09:05]} Qxf6 {[%emt 0:03:51]} 18. dxc5 {[%emt 0:12:40]} d4 {[%emt 0:09:00]} 19. Bg2 {[%emt 0:00:56]} dxc3 {[%emt 0:00:09]} 20. Ne3 {[%emt 0:00:25]} c2 {[%emt 0:09:45]} 21. Nxc2 {[%emt 0:03:25]} 1/2-1/2